[Event "Titled Tuesday Blitz August 24 2021"]
[White "Laurusas, Tomas"]
[Black "Begunov, Konstantin"]
[WhiteFideId "12803731"]
[BlackFideId "4118510"]
[WhiteElo "2542"]
[BlackElo "2262"]
[Result "1-0"]
[Round "02"]
[TimeControl "180+1"]
[Date "2021.08.24"]
[WhiteClock "0:00:13"]
[BlackClock "0:00:01"]

1. d4 {[%clk 0:03:00]}  d5 {[%clk 0:02:58]} 2. c4 {[%clk 0:03:00]}  c6 {[%clk 0:02:59]} 3. Nf3 {[%clk 0:02:59]}  Nf6 {[%clk 0:03:00]} 4. Nc3 {[%clk 0:02:59]}  dxc4 {[%clk 0:03:00]} 5. a4 {[%clk 0:02:58]}  Bg4 {[%clk 0:02:59]} 6. e3 {[%clk 0:02:45]}  e5 {[%clk 0:02:57]} 7. Bxc4 {[%clk 0:02:43]}  Bxf3 {[%clk 0:02:57]} 8. Qxf3 {[%clk 0:02:39]}  exd4 {[%clk 0:02:57]} 9. exd4 {[%clk 0:02:40]}  Qxd4 {[%clk 0:02:57]} 10. Qe2+ {[%clk 0:02:24]}  Be7 {[%clk 0:02:57]} 11. O-O {[%clk 0:02:25]}  Nbd7 {[%clk 0:02:54]} 12. Ba2 {[%clk 0:02:15]}  Qe5 {[%clk 0:02:40]} 13. Qf3 {[%clk 0:01:57]}  O-O {[%clk 0:02:23]} 14. Bf4 {[%clk 0:01:55]}  Qh5 {[%clk 0:02:09]} 15. Qg3 {[%clk 0:01:46]}  Bb4 {[%clk 0:02:02]} 16. Rad1 {[%clk 0:01:27]}  Qg6 {[%clk 0:01:39]} 17. Qh3 {[%clk 0:01:21]}  Nc5 {[%clk 0:01:32]} 18. Bb1 {[%clk 0:01:10]}  Qh5 {[%clk 0:01:18]} 19. Qg3 {[%clk 0:01:04]}  Rfd8 {[%clk 0:00:56]} 20. Bc2 {[%clk 0:00:57]}  Qg4 {[%clk 0:00:32]} 21. Qxg4 {[%clk 0:00:39]}  Nxg4 {[%clk 0:00:32]} 22. Na2 {[%clk 0:00:40]}  a5 {[%clk 0:00:23]} 23. Bc7 {[%clk 0:00:38]}  Rxd1 {[%clk 0:00:19]} 24. Rxd1 {[%clk 0:00:39]}  Nf6 {[%clk 0:00:16]} 25. Bd6 {[%clk 0:00:33]}  Na6 {[%clk 0:00:13]} 26. Be5 {[%clk 0:00:30]}  Be7 {[%clk 0:00:10]} 27. Bb3 {[%clk 0:00:28]}  Nc5 {[%clk 0:00:09]} 28. Bc2 {[%clk 0:00:27]}  Rd8 {[%clk 0:00:09]} 29. Nc3 {[%clk 0:00:23]}  Rxd1+ {[%clk 0:00:08]} 30. Bxd1 {[%clk 0:00:24]}  Kf8 {[%clk 0:00:08]} 31. Bc7 {[%clk 0:00:24]}  Nd5 {[%clk 0:00:03]} 32. Nxd5 {[%clk 0:00:23]}  cxd5 {[%clk 0:00:04]} 33. Bxa5 {[%clk 0:00:24]}  Bd6 {[%clk 0:00:03]} 34. Kf1 {[%clk 0:00:21]}  Ke7 {[%clk 0:00:02]} 35. Ke2 {[%clk 0:00:21]}  Ke6 {[%clk 0:00:03]} 36. Bc2 {[%clk 0:00:22]}  Ne4 {[%clk 0:00:03]} 37. f3 {[%clk 0:00:20]}  Nf6 {[%clk 0:00:03]} 38. g3 {[%clk 0:00:19]}  Be5 {[%clk 0:00:03]} 39. b3 {[%clk 0:00:19]}  Bd4 {[%clk 0:00:04]} 40. Bd2 {[%clk 0:00:19]}  Bg1 {[%clk 0:00:04]} 41. h4 {[%clk 0:00:17]}  g6 {[%clk 0:00:04]} 42. b4 {[%clk 0:00:18]}  Nd7 {[%clk 0:00:03]} 43. a5 {[%clk 0:00:17]}  Ne5 {[%clk 0:00:04]} 44. Bb3 {[%clk 0:00:16]}  Nc4 {[%clk 0:00:04]} 45. Be1 {[%clk 0:00:15]}  Bd4 {[%clk 0:00:03]} 46. Kd3 {[%clk 0:00:14]}  Be5 {[%clk 0:00:03]} 47. f4 {[%clk 0:00:12]}  Bd6 {[%clk 0:00:03]} 48. Bxc4 {[%clk 0:00:12]}  dxc4+ {[%clk 0:00:03]} 49. Kxc4 {[%clk 0:00:13]}  f5 {[%clk 0:00:02]} 50. b5 {[%clk 0:00:12]}  Kd7 {[%clk 0:00:03]} 51. Bb4 {[%clk 0:00:11]}  Bc7 {[%clk 0:00:02]} 52. a6 {[%clk 0:00:12]}  bxa6 {[%clk 0:00:02]} 53. bxa6 {[%clk 0:00:13]}  Kc6 {[%clk 0:00:01]} 54. Bc5 {[%clk 0:00:12]}  Ba5 {[%clk 0:00:01]} 55. Bf2 {[%clk 0:00:13]} 1-0


[Site "https://www.chess.com"]

[Event "Titled Tuesday Blitz August 24 2021"]
[White "Manukyan, Sargis A."]
[Black "Jobava, Baadur"]
[WhiteFideId "13303970"]
[BlackFideId "13601520"]
[WhiteElo "2187"]
[BlackElo "2748"]
[Result "0-1"]
[Round "02"]
[TimeControl "180+1"]
[Date "2021.08.24"]
[WhiteClock "0:00:16"]
[BlackClock "0:00:52"]

1. d4 {[%clk 0:03:00]}  d5 {[%clk 0:03:00]} 2. c4 {[%clk 0:02:59]}  c6 {[%clk 0:03:00]} 3. Nc3 {[%clk 0:02:58]}  Nf6 {[%clk 0:03:00]} 4. e3 {[%clk 0:02:59]}  Nbd7 {[%clk 0:02:59]} 5. Nf3 {[%clk 0:02:59]}  Nb6 {[%clk 0:02:59]} 6. b3 {[%clk 0:02:55]}  Bg4 {[%clk 0:02:56]} 7. Qc2 {[%clk 0:02:51]}  Bxf3 {[%clk 0:02:54]} 8. gxf3 {[%clk 0:02:52]}  e6 {[%clk 0:02:55]} 9. f4 {[%clk 0:02:52]}  g6 {[%clk 0:02:54]} 10. Bd3 {[%clk 0:02:49]}  Nbd7 {[%clk 0:02:54]} 11. c5 {[%clk 0:02:46]}  b6 {[%clk 0:02:52]} 12. b4 {[%clk 0:02:44]}  a5 {[%clk 0:02:52]} 13. b5 {[%clk 0:02:34]}  bxc5 {[%clk 0:02:49]} 14. bxc6 {[%clk 0:02:34]}  Nb8 {[%clk 0:02:48]} 15. Qa4 {[%clk 0:02:20]}  Qc8 {[%clk 0:02:41]} 16. dxc5 {[%clk 0:02:13]}  Bg7 {[%clk 0:02:38]} 17. Nb5 {[%clk 0:01:56]}  O-O {[%clk 0:02:37]} 18. Nd6 {[%clk 0:01:56]}  Qxc6 {[%clk 0:02:37]} 19. Qxc6 {[%clk 0:01:52]}  Nxc6 {[%clk 0:02:37]} 20. Bb2 {[%clk 0:01:52]}  Rfb8 {[%clk 0:02:27]} 21. Bc3 {[%clk 0:01:51]}  Nb4 {[%clk 0:02:15]} 22. Kd2 {[%clk 0:01:40]}  Nd7 {[%clk 0:02:07]} 23. Bxg7 {[%clk 0:01:36]}  Nxc5 {[%clk 0:02:07]} 24. Bxg6 {[%clk 0:01:08]}  hxg6 {[%clk 0:02:05]} 25. Bd4 {[%clk 0:01:08]}  Ne4+ {[%clk 0:01:50]} 26. Nxe4 {[%clk 0:01:07]}  dxe4 {[%clk 0:01:51]} 27. h4 {[%clk 0:01:05]}  Rb5 {[%clk 0:01:49]} 28. h5 {[%clk 0:01:02]}  gxh5 {[%clk 0:01:47]} 29. Rag1+ {[%clk 0:00:54]}  Kf8 {[%clk 0:01:47]} 30. Rg5 {[%clk 0:00:55]}  Rxg5 {[%clk 0:01:45]} 31. fxg5 {[%clk 0:00:55]}  Rc8 {[%clk 0:01:40]} 32. a3 {[%clk 0:00:50]}  Nd5 {[%clk 0:01:22]} 33. Rxh5 {[%clk 0:00:50]}  Ke7 {[%clk 0:01:22]} 34. g6 {[%clk 0:00:47]}  fxg6 {[%clk 0:01:21]} 35. Rh7+ {[%clk 0:00:47]}  Kd6 {[%clk 0:01:21]} 36. Ra7 {[%clk 0:00:48]}  Rf8 {[%clk 0:01:12]} 37. Ra6+ {[%clk 0:00:44]}  Kd7 {[%clk 0:01:12]} 38. Ke2 {[%clk 0:00:43]}  Rc8 {[%clk 0:01:10]} 39. Kd2 {[%clk 0:00:37]}  Rf8 {[%clk 0:01:10]} 40. Ke2 {[%clk 0:00:36]}  Rf5 {[%clk 0:01:10]} 41. Ra7+ {[%clk 0:00:29]}  Kc6 {[%clk 0:01:07]} 42. a4 {[%clk 0:00:23]}  Nb4 {[%clk 0:00:59]} 43. Rg7 {[%clk 0:00:24]}  g5 {[%clk 0:00:59]} 44. Re7 {[%clk 0:00:23]}  Kd5 {[%clk 0:00:57]} 45. Rc7 {[%clk 0:00:22]}  Nd3 {[%clk 0:00:57]} 46. Bb6 {[%clk 0:00:20]}  Rxf2+ {[%clk 0:00:57]} 47. Kd1 {[%clk 0:00:21]}  Nb2+ {[%clk 0:00:55]} 48. Ke1 {[%clk 0:00:20]}  Nd3+ {[%clk 0:00:55]} 49. Kd1 {[%clk 0:00:21]}  g4 {[%clk 0:00:55]} 50. Bxa5 {[%clk 0:00:18]}  g3 {[%clk 0:00:54]} 51. Rd7+ {[%clk 0:00:17]}  Kc6 {[%clk 0:00:54]} 52. Rc7+ {[%clk 0:00:18]}  Kd6 {[%clk 0:00:54]} 53. Rg7 {[%clk 0:00:18]}  g2 {[%clk 0:00:54]} 54. Bc7+ {[%clk 0:00:18]}  Kd5 {[%clk 0:00:54]} 55. Bh2 {[%clk 0:00:19]}  Kc4 {[%clk 0:00:53]} 56. a5 {[%clk 0:00:19]}  Kb5 {[%clk 0:00:51]} 57. Rg5+ {[%clk 0:00:17]}  e5 {[%clk 0:00:50]} 58. Bxe5 {[%clk 0:00:16]}  Rf1+ {[%clk 0:00:50]} 59. Kd2 {[%clk 0:00:16]}  g1=Q {[%clk 0:00:51]} 60. Rxg1 {[%clk 0:00:16]}  Rxg1 {[%clk 0:00:52]} 61. Bd4 {[%clk 0:00:16]} 0-1


[Site "https://www.chess.com"]

[Event "Titled Tuesday Blitz August 24 2021"]
[White "Matveev, Vladimir"]
[Black "Svane, Rasmus"]
[WhiteFideId "24130753"]
[BlackFideId "4657101"]
[WhiteElo "2354"]
[BlackElo "2669"]
[Result "0-1"]
[Round "02"]
[TimeControl "180+1"]
[Date "2021.08.24"]
[WhiteClock "0:01:19"]
[BlackClock "0:01:34"]

1. d4 {[%clk 0:03:00]}  d5 {[%clk 0:02:58]} 2. c4 {[%clk 0:03:00]}  e6 {[%clk 0:02:59]} 3. Nf3 {[%clk 0:02:59]}  a6 {[%clk 0:02:55]} 4. cxd5 {[%clk 0:02:55]}  exd5 {[%clk 0:02:56]} 5. Nc3 {[%clk 0:02:55]}  Nf6 {[%clk 0:02:56]} 6. Bf4 {[%clk 0:02:52]}  Bd6 {[%clk 0:02:56]} 7. Bg3 {[%clk 0:02:52]}  O-O {[%clk 0:02:55]} 8. Qc2 {[%clk 0:02:51]}  c6 {[%clk 0:02:48]} 9. e3 {[%clk 0:02:51]}  h6 {[%clk 0:02:45]} 10. Be2 {[%clk 0:02:49]}  Re8 {[%clk 0:02:44]} 11. O-O {[%clk 0:02:48]}  Bxg3 {[%clk 0:02:41]} 12. hxg3 {[%clk 0:02:48]}  Nbd7 {[%clk 0:02:39]} 13. b4 {[%clk 0:02:42]}  Nb6 {[%clk 0:02:37]} 14. a4 {[%clk 0:02:38]}  Bg4 {[%clk 0:02:37]} 15. b5 {[%clk 0:02:28]}  cxb5 {[%clk 0:02:34]} 16. axb5 {[%clk 0:02:29]}  a5 {[%clk 0:02:29]} 17. Na4 {[%clk 0:02:20]}  Nxa4 {[%clk 0:02:15]} 18. Qxa4 {[%clk 0:02:18]}  Ne4 {[%clk 0:02:13]} 19. Rfc1 {[%clk 0:02:15]}  Qb6 {[%clk 0:02:11]} 20. Qa2 {[%clk 0:02:07]}  Be6 {[%clk 0:02:03]} 21. Ne5 {[%clk 0:02:00]}  a4 {[%clk 0:02:02]} 22. Qa3 {[%clk 0:01:37]}  Qd6 {[%clk 0:01:50]} 23. Nd3 {[%clk 0:01:25]}  Qxa3 {[%clk 0:01:33]} 24. Rxa3 {[%clk 0:01:26]}  Rec8 {[%clk 0:01:33]} 25. Rxc8+ {[%clk 0:01:21]}  Rxc8 {[%clk 0:01:34]} 26. Rxa4 {[%clk 0:01:19]}  Nc3 {[%clk 0:01:34]} 0-1


[Site "https://www.chess.com"]

[Event "Titled Tuesday Blitz August 24 2021"]
[White "Mirzanurov, Bulat"]
[Black "Makhnev, Denis"]
[WhiteFideId "4184521"]
[BlackFideId "13707647"]
[WhiteElo "2208"]
[BlackElo "2537"]
[Result "0-1"]
[Round "02"]
[TimeControl "180+1"]
[Date "2021.08.24"]
[WhiteClock "0:00:11"]
[BlackClock "0:00:31"]

1. e4 {[%clk 0:03:00]}  c6 {[%clk 0:02:59]} 2. d4 {[%clk 0:03:00]}  d5 {[%clk 0:02:58]} 3. exd5 {[%clk 0:03:00]}  cxd5 {[%clk 0:02:57]} 4. Bd3 {[%clk 0:03:00]}  Nc6 {[%clk 0:02:56]} 5. c3 {[%clk 0:03:00]}  Nf6 {[%clk 0:02:56]} 6. h3 {[%clk 0:02:59]}  e5 {[%clk 0:02:56]} 7. dxe5 {[%clk 0:02:59]}  Nxe5 {[%clk 0:02:57]} 8. Nf3 {[%clk 0:02:59]}  Nxd3+ {[%clk 0:02:57]} 9. Qxd3 {[%clk 0:02:59]}  Be7 {[%clk 0:02:54]} 10. O-O {[%clk 0:02:57]}  O-O {[%clk 0:02:54]} 11. Be3 {[%clk 0:02:54]}  Re8 {[%clk 0:02:52]} 12. Nbd2 {[%clk 0:02:54]}  Be6 {[%clk 0:02:40]} 13. Nd4 {[%clk 0:02:50]}  Bd7 {[%clk 0:02:40]} 14. N4f3 {[%clk 0:02:43]}  a6 {[%clk 0:02:35]} 15. a4 {[%clk 0:02:40]}  Bf8 {[%clk 0:02:30]} 16. Bd4 {[%clk 0:02:37]}  Ne4 {[%clk 0:02:29]} 17. Rfd1 {[%clk 0:02:27]}  Qc7 {[%clk 0:02:22]} 18. Be3 {[%clk 0:02:24]}  Bc6 {[%clk 0:02:18]} 19. Nd4 {[%clk 0:02:20]}  Bd7 {[%clk 0:02:12]} 20. N2f3 {[%clk 0:02:09]}  Rad8 {[%clk 0:02:09]} 21. Ne2 {[%clk 0:02:08]}  Bf5 {[%clk 0:02:06]} 22. Bf4 {[%clk 0:01:37]}  Qb6 {[%clk 0:01:55]} 23. Be3 {[%clk 0:01:35]}  Qxb2 {[%clk 0:01:39]} 24. Rdb1 {[%clk 0:01:10]}  Nd6 {[%clk 0:01:34]} 25. Qxf5 {[%clk 0:00:59]}  Qxe2 {[%clk 0:01:31]} 26. Qxd5 {[%clk 0:00:54]}  Nc4 {[%clk 0:01:27]} 27. Qxb7 {[%clk 0:00:54]}  Nxe3 {[%clk 0:01:25]} 28. fxe3 {[%clk 0:00:54]}  Qxe3+ {[%clk 0:01:22]} 29. Kh1 {[%clk 0:00:53]}  a5 {[%clk 0:01:18]} 30. c4 {[%clk 0:00:47]}  Bb4 {[%clk 0:01:15]} 31. Qb5 {[%clk 0:00:35]}  h6 {[%clk 0:01:10]} 32. Qf5 {[%clk 0:00:33]}  Qe6 {[%clk 0:01:07]} 33. Qxe6 {[%clk 0:00:31]}  Rxe6 {[%clk 0:01:08]} 34. Rc1 {[%clk 0:00:31]}  Rc6 {[%clk 0:01:02]} 35. Rc2 {[%clk 0:00:29]}  f6 {[%clk 0:00:49]} 36. Rac1 {[%clk 0:00:22]}  Rd3 {[%clk 0:00:47]} 37. c5 {[%clk 0:00:20]}  Rd5 {[%clk 0:00:45]} 38. Rc4 {[%clk 0:00:20]}  Rdxc5 {[%clk 0:00:44]} 39. Rxc5 {[%clk 0:00:20]}  Rxc5 {[%clk 0:00:44]} 40. Rxc5 {[%clk 0:00:21]}  Bxc5 {[%clk 0:00:45]} 41. g4 {[%clk 0:00:21]}  Kf7 {[%clk 0:00:44]} 42. Kg2 {[%clk 0:00:21]}  Ke6 {[%clk 0:00:44]} 43. Kf1 {[%clk 0:00:21]}  Kd5 {[%clk 0:00:45]} 44. Ke2 {[%clk 0:00:19]}  Kc4 {[%clk 0:00:45]} 45. Nh4 {[%clk 0:00:20]}  Kb3 {[%clk 0:00:42]} 46. Nf5 {[%clk 0:00:20]}  Bf8 {[%clk 0:00:42]} 47. Kd3 {[%clk 0:00:18]}  Kxa4 {[%clk 0:00:42]} 48. Kc4 {[%clk 0:00:19]}  Ka3 {[%clk 0:00:40]} 49. Kc3 {[%clk 0:00:18]}  a4 {[%clk 0:00:39]} 50. h4 {[%clk 0:00:17]}  Ka2 {[%clk 0:00:39]} 51. Kc2 {[%clk 0:00:16]}  g6 {[%clk 0:00:37]} 52. Nd4 {[%clk 0:00:14]}  Ka3 {[%clk 0:00:34]} 53. Nc6 {[%clk 0:00:11]}  Bd6 {[%clk 0:00:33]} 54. h5 {[%clk 0:00:11]}  gxh5 {[%clk 0:00:32]} 55. gxh5 {[%clk 0:00:11]}  f5 {[%clk 0:00:32]} 56. Kc3 {[%clk 0:00:11]}  f4 {[%clk 0:00:31]} 57. Nd4 {[%clk 0:00:11]}  Be5 {[%clk 0:00:30]} 58. Kd3 {[%clk 0:00:11]}  Bxd4 {[%clk 0:00:31]} 59. Kxd4 {[%clk 0:00:11]}  Kb3 {[%clk 0:00:31]} 0-1


[Site "https://www.chess.com"]

[Event "Titled Tuesday Blitz August 24 2021"]
[White "Moroni, Luca Jr"]
[Black "Bilan, Danila"]
[WhiteFideId "865834"]
[BlackFideId "24161918"]
[WhiteElo "2491"]
[BlackElo "2164"]
[Result "1-0"]
[Round "02"]
[TimeControl "180+1"]
[Date "2021.08.24"]
[WhiteClock "0:01:02"]
[BlackClock "0:00:43"]

1. d4 {[%clk 0:03:00]}  d5 {[%clk 0:02:59]} 2. Bf4 {[%clk 0:03:00]}  Nf6 {[%clk 0:02:59]} 3. e3 {[%clk 0:03:00]}  c5 {[%clk 0:02:59]} 4. dxc5 {[%clk 0:03:01]}  e6 {[%clk 0:02:56]} 5. b4 {[%clk 0:03:00]}  a5 {[%clk 0:02:52]} 6. c3 {[%clk 0:02:52]}  axb4 {[%clk 0:02:45]} 7. cxb4 {[%clk 0:02:52]}  b6 {[%clk 0:02:45]} 8. Bxb8 {[%clk 0:02:50]}  Rxb8 {[%clk 0:02:40]} 9. Bb5+ {[%clk 0:02:49]}  Ke7 {[%clk 0:02:36]} 10. c6 {[%clk 0:02:45]}  Ne4 {[%clk 0:02:33]} 11. Ne2 {[%clk 0:02:34]}  Nd6 {[%clk 0:02:26]} 12. Nbc3 {[%clk 0:02:29]}  g6 {[%clk 0:02:11]} 13. Rc1 {[%clk 0:02:27]}  Qc7 {[%clk 0:02:00]} 14. Qd4 {[%clk 0:02:17]}  f6 {[%clk 0:01:44]} 15. Nf4 {[%clk 0:02:10]}  Kf7 {[%clk 0:01:40]} 16. O-O {[%clk 0:01:47]}  Bg7 {[%clk 0:01:22]} 17. Qd2 {[%clk 0:01:32]}  Ra8 {[%clk 0:01:09]} 18. a4 {[%clk 0:01:31]}  Ba6 {[%clk 0:01:02]} 19. Ncxd5 {[%clk 0:01:15]}  exd5 {[%clk 0:00:57]} 20. Qxd5+ {[%clk 0:01:16]}  Ke7 {[%clk 0:00:51]} 21. Qe6+ {[%clk 0:01:13]}  Kf8 {[%clk 0:00:48]} 22. Bxa6 {[%clk 0:01:03]}  Rxa6 {[%clk 0:00:43]} 23. Nd5 {[%clk 0:01:02]} 1-0


[Site "https://www.chess.com"]

[Event "Titled Tuesday Blitz August 24 2021"]
[White "Murzin, Volodar"]
[Black "Zhuravlev, Alexey"]
[WhiteFideId "44155573"]
[BlackFideId "4164199"]
[WhiteElo "2541"]
[BlackElo "2507"]
[Result "1-0"]
[Round "02"]
[TimeControl "180+1"]
[Date "2021.08.24"]
[WhiteClock "0:00:01"]
[BlackClock "0:00:05"]

1. e4 {[%clk 0:03:00]}  c6 {[%clk 0:02:59]} 2. d4 {[%clk 0:02:54]}  d5 {[%clk 0:03:00]} 3. f3 {[%clk 0:02:53]}  e6 {[%clk 0:02:58]} 4. Nc3 {[%clk 0:02:51]}  Bb4 {[%clk 0:02:57]} 5. a3 {[%clk 0:02:52]}  Ba5 {[%clk 0:02:49]} 6. b4 {[%clk 0:02:36]}  Bc7 {[%clk 0:02:43]} 7. e5 {[%clk 0:02:30]}  b6 {[%clk 0:02:30]} 8. f4 {[%clk 0:02:26]}  c5 {[%clk 0:02:29]} 9. Nf3 {[%clk 0:02:23]}  Ne7 {[%clk 0:02:25]} 10. Nb5 {[%clk 0:02:12]}  cxd4 {[%clk 0:02:10]} 11. Nfxd4 {[%clk 0:02:07]}  O-O {[%clk 0:02:07]} 12. Bd3 {[%clk 0:02:01]}  Nbc6 {[%clk 0:02:08]} 13. Nxc6 {[%clk 0:01:46]}  Nxc6 {[%clk 0:02:06]} 14. O-O {[%clk 0:01:47]}  g6 {[%clk 0:02:02]} 15. Nxc7 {[%clk 0:01:25]}  Qxc7 {[%clk 0:02:01]} 16. Qe1 {[%clk 0:01:21]}  Qe7 {[%clk 0:01:42]} 17. Be3 {[%clk 0:01:17]}  Bd7 {[%clk 0:01:40]} 18. Bf2 {[%clk 0:01:16]}  Rfc8 {[%clk 0:01:30]} 19. Bh4 {[%clk 0:01:14]}  Qf8 {[%clk 0:01:30]} 20. Bf6 {[%clk 0:01:10]}  Nd4 {[%clk 0:01:27]} 21. Qf2 {[%clk 0:01:09]}  Nb5 {[%clk 0:01:13]} 22. Rae1 {[%clk 0:00:47]}  Nc3 {[%clk 0:01:12]} 23. Qh4 {[%clk 0:00:44]}  Ne4 {[%clk 0:00:19]} 24. Rf3 {[%clk 0:00:41]}  Nxf6 {[%clk 0:00:16]} 25. exf6 {[%clk 0:00:40]}  Kh8 {[%clk 0:00:16]} 26. Rh3 {[%clk 0:00:33]}  Qg8 {[%clk 0:00:16]} 27. Re5 {[%clk 0:00:11]}  Rc3 {[%clk 0:00:16]} 28. Qh6 {[%clk 0:00:07]}  Rac8 {[%clk 0:00:14]} 29. Rg3 {[%clk 0:00:03]}  a6 {[%clk 0:00:12]} 30. h4 {[%clk 0:00:03]}  Bb5 {[%clk 0:00:11]} 31. h5 {[%clk 0:00:03]}  Bxd3 {[%clk 0:00:11]} 32. cxd3 {[%clk 0:00:04]}  Rxa3 {[%clk 0:00:07]} 33. hxg6 {[%clk 0:00:04]}  fxg6 {[%clk 0:00:08]} 34. Rh3 {[%clk 0:00:02]}  Qf7 {[%clk 0:00:07]} 35. Rxe6 {[%clk 0:00:02]}  Rc7 {[%clk 0:00:06]} 36. Rd6 {[%clk 0:00:01]}  Rd7 {[%clk 0:00:04]} 37. Rxd7 {[%clk 0:00:01]}  Qxd7 {[%clk 0:00:05]} 38. Qf8# {[%clk 0:00:01]} 1-0


[Site "https://www.chess.com"]

[Event "Titled Tuesday Blitz August 24 2021"]
[White "Nakamura, Hikaru"]
[Black "Czopor, Maciej"]
[WhiteFideId "2016192"]
[BlackFideId "21805431"]
[WhiteElo "2900"]
[BlackElo "1999"]
[Result "1-0"]
[Round "02"]
[TimeControl "180+1"]
[Date "2021.08.24"]
[WhiteClock "0:00:47"]
[BlackClock "0:00:03"]

1. Nf3 {[%clk 0:03:00]}  Nf6 {[%clk 0:02:59]} 2. d4 {[%clk 0:03:00]}  e6 {[%clk 0:02:59]} 3. Bf4 {[%clk 0:03:00]}  d5 {[%clk 0:02:59]} 4. e3 {[%clk 0:03:00]}  Bd6 {[%clk 0:02:58]} 5. Bg3 {[%clk 0:02:59]}  c5 {[%clk 0:02:59]} 6. c3 {[%clk 0:03:00]}  O-O {[%clk 0:02:59]} 7. Nbd2 {[%clk 0:02:59]}  Qc7 {[%clk 0:02:59]} 8. Ne5 {[%clk 0:02:58]}  Nc6 {[%clk 0:02:57]} 9. f4 {[%clk 0:02:56]}  Ne7 {[%clk 0:02:56]} 10. Bd3 {[%clk 0:02:55]}  Nf5 {[%clk 0:02:23]} 11. Bf2 {[%clk 0:02:54]}  c4 {[%clk 0:02:17]} 12. Bc2 {[%clk 0:02:53]}  b5 {[%clk 0:02:17]} 13. g4 {[%clk 0:02:50]}  Ne7 {[%clk 0:02:17]} 14. a3 {[%clk 0:02:46]}  a5 {[%clk 0:02:11]} 15. g5 {[%clk 0:02:44]}  Nd7 {[%clk 0:02:07]} 16. Qh5 {[%clk 0:02:41]}  Nf5 {[%clk 0:02:01]} 17. Ndf3 {[%clk 0:02:28]}  Rb8 {[%clk 0:01:48]} 18. Nh4 {[%clk 0:02:23]}  g6 {[%clk 0:01:31]} 19. Qe2 {[%clk 0:02:21]}  Nxe5 {[%clk 0:01:13]} 20. fxe5 {[%clk 0:02:19]}  Be7 {[%clk 0:01:14]} 21. Nf3 {[%clk 0:02:17]}  b4 {[%clk 0:01:13]} 22. axb4 {[%clk 0:02:15]}  axb4 {[%clk 0:01:13]} 23. O-O {[%clk 0:02:16]}  Bd7 {[%clk 0:01:09]} 24. h4 {[%clk 0:02:10]}  Ra8 {[%clk 0:01:02]} 25. e4 {[%clk 0:01:47]}  dxe4 {[%clk 0:00:58]} 26. Bxe4 {[%clk 0:01:47]}  Rxa1 {[%clk 0:00:46]} 27. Rxa1 {[%clk 0:01:34]}  Rb8 {[%clk 0:00:47]} 28. Nd2 {[%clk 0:01:23]}  bxc3 {[%clk 0:00:38]} 29. bxc3 {[%clk 0:01:23]}  Rb2 {[%clk 0:00:37]} 30. Qxc4 {[%clk 0:01:22]}  Qxc4 {[%clk 0:00:27]} 31. Nxc4 {[%clk 0:01:22]}  Rb3 {[%clk 0:00:27]} 32. Be1 {[%clk 0:01:00]}  Bb5 {[%clk 0:00:24]} 33. Na5 {[%clk 0:00:58]}  Rb2 {[%clk 0:00:21]} 34. Rb1 {[%clk 0:00:58]}  Rxb1 {[%clk 0:00:16]} 35. Bxb1 {[%clk 0:00:59]}  Ne3 {[%clk 0:00:17]} 36. Kf2 {[%clk 0:00:55]}  Nc4 {[%clk 0:00:16]} 37. Nxc4 {[%clk 0:00:50]}  Bxc4 {[%clk 0:00:17]} 38. Bd2 {[%clk 0:00:51]}  Kf8 {[%clk 0:00:16]} 39. Ke3 {[%clk 0:00:51]}  Ke8 {[%clk 0:00:17]} 40. Bd3 {[%clk 0:00:51]}  Bxd3 {[%clk 0:00:16]} 41. Kxd3 {[%clk 0:00:52]}  Kd7 {[%clk 0:00:16]} 42. c4 {[%clk 0:00:52]}  Kc6 {[%clk 0:00:16]} 43. Ke4 {[%clk 0:00:53]}  Ba3 {[%clk 0:00:15]} 44. Be3 {[%clk 0:00:52]}  Bb2 {[%clk 0:00:16]} 45. d5+ {[%clk 0:00:52]}  Kd7 {[%clk 0:00:16]} 46. c5 {[%clk 0:00:49]}  Ba3 {[%clk 0:00:09]} 47. c6+ {[%clk 0:00:46]}  Kc7 {[%clk 0:00:09]} 48. Bd2 {[%clk 0:00:47]}  exd5+ {[%clk 0:00:05]} 49. Kxd5 {[%clk 0:00:48]}  Bb2 {[%clk 0:00:03]} 50. Bf4 {[%clk 0:00:48]}  Kc8 {[%clk 0:00:03]} 51. e6 {[%clk 0:00:47]}  fxe6+ {[%clk 0:00:03]} 52. Kxe6 {[%clk 0:00:47]}  Bc3 {[%clk 0:00:03]} 53. Bg3 {[%clk 0:00:47]} 1-0


[Site "https://www.chess.com"]

[Event "Titled Tuesday Blitz August 24 2021"]
[White "Petrovskyi, Vadym"]
[Black "Ibadov, Dashgyn"]
[WhiteFideId "14165210"]
[BlackFideId "24107514"]
[WhiteElo "2334"]
[BlackElo "2102"]
[Result "0-1"]
[Round "02"]
[TimeControl "180+1"]
[Date "2021.08.24"]
[WhiteClock "0:00:03"]
[BlackClock "0:00:13"]

1. e4 {[%clk 0:03:00]}  e5 {[%clk 0:02:59]} 2. Nf3 {[%clk 0:03:00]}  Nc6 {[%clk 0:02:57]} 3. d4 {[%clk 0:03:00]}  exd4 {[%clk 0:02:55]} 4. Bc4 {[%clk 0:03:00]}  Bc5 {[%clk 0:02:52]} 5. O-O {[%clk 0:03:00]}  d6 {[%clk 0:02:38]} 6. c3 {[%clk 0:03:00]}  Bg4 {[%clk 0:02:29]} 7. Qb3 {[%clk 0:02:59]}  Na5 {[%clk 0:02:24]} 8. Qa4+ {[%clk 0:02:24]}  c6 {[%clk 0:02:22]} 9. cxd4 {[%clk 0:02:19]}  b5 {[%clk 0:02:14]} 10. Qc2 {[%clk 0:01:58]}  Nxc4 {[%clk 0:02:06]} 11. dxc5 {[%clk 0:01:56]}  Bxf3 {[%clk 0:02:06]} 12. gxf3 {[%clk 0:01:56]}  Ne7 {[%clk 0:01:35]} 13. Bf4 {[%clk 0:01:23]}  Ne5 {[%clk 0:01:19]} 14. Kg2 {[%clk 0:00:55]}  O-O {[%clk 0:01:14]} 15. Rd1 {[%clk 0:00:53]}  N7g6 {[%clk 0:01:12]} 16. Bg3 {[%clk 0:00:51]}  Qg5 {[%clk 0:01:09]} 17. Nd2 {[%clk 0:00:32]}  h5 {[%clk 0:00:50]} 18. Kh1 {[%clk 0:00:27]}  h4 {[%clk 0:00:46]} 19. Bxe5 {[%clk 0:00:25]}  dxe5 {[%clk 0:00:47]} 20. Rg1 {[%clk 0:00:24]}  Qf6 {[%clk 0:00:46]} 21. Qc3 {[%clk 0:00:17]}  Rad8 {[%clk 0:00:45]} 22. Qe3 {[%clk 0:00:17]}  Rd7 {[%clk 0:00:40]} 23. Nb3 {[%clk 0:00:14]}  Rfd8 {[%clk 0:00:39]} 24. Qg5 {[%clk 0:00:12]}  Qxf3+ {[%clk 0:00:39]} 25. Qg2 {[%clk 0:00:12]}  Qf6 {[%clk 0:00:32]} 26. Rae1 {[%clk 0:00:09]}  Nf4 {[%clk 0:00:31]} 27. Qg4 {[%clk 0:00:09]}  Nd3 {[%clk 0:00:29]} 28. Re2 {[%clk 0:00:08]}  g6 {[%clk 0:00:28]} 29. f3 {[%clk 0:00:04]}  Nf4 {[%clk 0:00:27]} 30. Ree1 {[%clk 0:00:03]}  Rd3 {[%clk 0:00:25]} 31. Na5 {[%clk 0:00:02]}  Rd2 {[%clk 0:00:21]} 32. Nb7 {[%clk 0:00:02]}  R8d3 {[%clk 0:00:20]} 33. Nd6 {[%clk 0:00:02]}  Rxb2 {[%clk 0:00:16]} 34. Qc8+ {[%clk 0:00:02]}  Kh7 {[%clk 0:00:15]} 35. Ne8 {[%clk 0:00:03]}  Qe7 {[%clk 0:00:13]} 36. Nd6 {[%clk 0:00:02]}  Rdd2 {[%clk 0:00:13]} 37. Rg2 {[%clk 0:00:01]}  Rxg2 {[%clk 0:00:13]} 38. Nf5 {[%clk 0:00:02]}  Rxh2+ {[%clk 0:00:12]} 39. Kg1 {[%clk 0:00:02]}  Rbg2+ {[%clk 0:00:12]} 40. Kf1 {[%clk 0:00:03]}  Rh1# {[%clk 0:00:13]} 0-1


[Site "https://www.chess.com"]